Cogmind - Beta 15 *** ADVENTURER MODE // 2025.05.07 @ 14:43:15 Player: garlic bread Result: Destroyed by as-27075 with Assembled Blade Performance ------------- Evolutions (0) 0 Regions Visited (2) 400 Robots Destroyed (1) 5 Value Destroyed (34) 34 Prototype IDs (0) 0 Alien Tech Used (0) 0 Bonus (0) 0 TOTAL SCORE: 439 Bonus ------- None Cogmind --------- Core Integrity 0/250 Matter 300/300 Energy 100/100 System Corruption 0% Temperature Cool (43) Movement Core (700) Ox13 Location -10/Mines Parts ------- > --- POWER (1) -------- (None) > --- PROPULSION (2) --- (None) > --- UTILITY (2) ------ High-capacity Storage Unit > --- WEAPON (2) ------- (None) > --- INVENTORY (20) --- Wheel Wheel Heat Sink Core Shielding Plasma Cutter Plasma Cutter Peak State ------------ > --- POWER ------------ Ion Engine > --- PROPULSION ------- Aluminum Leg Aluminum Leg > --- UTILITY ---------- High-capacity Storage Unit Terrain Scanner > --- WEAPON ----------- EM Pulse Gun Plasma Cutter > --- INVENTORY -------- Light Ion Engine Wheel Wheel Heat Sink Core Shielding Medium Laser Medium Laser Plasma Cutter Plasma Cutter [Rating: 9] Favorites ----------- Power Ion Engine Engine Ion Engine Propulsion Aluminum Leg Leg Aluminum Leg Utility High-capacity Storage Unit Device Terrain Scanner Storage High-capacity Storage Unit Weapon EM Pulse Gun Energy Gun EM Pulse Gun Special Weapon Plasma Cutter Build | -11 -10 -10 ------- Run | Yrd Mat Min Slots Evolved . | . . . Power . | . . . Propulsion . | . . . Utility . | . . . Weapon . | . . . Parts Attached 11 | 7 2 2 Power 2 | 2 . . Engine 2 | 2 . . Core . | . . . Reactor . | . . . Propulsion 2 | 2 . . Treads . | . . . Leg 2 | 2 . . Wheel . | . . . Hover . | . . . Flight . | . . . Utility 3 | 1 2 . Device 2 | 1 1 . Storage 1 | . 1 . Processor . | . . . Hackware . | . . . Protection . | . . . Artifact . | . . . Weapon 4 | 2 . 2 Energy Gun 3 | 2 . 1 Energy Cannon . | . . . Ballistic Gun . | . . . Ballistic Cannon . | . . . Launcher . | . . . Special Weapon 1 | . . 1 Impact Weapon . | . . . Slashing Weapon . | . . . Piercing Weapon . | . . . Special Melee Weapon . | . . . Unidentified Prototypes . | . . . Parts Lost 9 | . . 9 Power 2 | . . 2 Propulsion 2 | . . 2 Utility 1 | . . 1 Weapon 4 | . . 4 Highest Loss Streak 9 | . . 9 To Critical Strikes . | . . . Average Backups 5 | 2 5 8 Power . | . 1 . Propulsion 1 | 1 2 2 Utility 1 | . 1 2 Weapon . | . 1 . Tool/Special . | . . . Unused Backups 3 | . . 3 Power . | . . . Propulsion 2 | . . 2 Utility 1 | . . 1 Weapon . | . . . Tool/Special . | . . . Average Slot Usage (%) 94 | . 97 85 Engine 13 | . 14 12 Leg 26 | . 28 22 Device 13 | . 14 12 Storage 12 | . 11 14 Energy Gun 25 | . 28 20 Special Weapon 1 | . . 4 Peak Build Rating 9 | 6 8 9 Average Rating 5 | 3 7 6 On Entrance 4 | . 6 8 Naked Turns . | . . . Heaviest Build 50 | 10 50 50 Greatest Support 20 | 20 20 20 Greatest Overweight (x) 14 | . 2 14 Average Overweight (x) . | . 1 3 Largest Inventory Capacity 20 | 5 20 20 Average Capacity 14 | 5 18 20 Most Carried 10 | 5 10 9 Average Carried 5 | 2 5 8 Final Capacity 20 | 5 20 20 Final Carried 9 | 4 9 6 Class Distribution -------------------- 100% | Mutant Dominant Class ---------------- Mutant | -10/Materials Mutant | -10/Mines Resources | -11 -10 -10 ----------- Run | Yrd Mat Min Matter Collected 300 | 280 . 20 Remotely . | . . . Salvage Created 52 | 42 . 10 Parts 2 | 2 . . Haulers Intercepted . | . . . Recyclers Shooed . | . . . Parts Field Recycled . | . . . Retrieved Matter . | . . . Parts Self-Destructed . | . . . Prevented . | . . . Kills | -11 -10 -10 ------- Run | Yrd Mat Min Combat Hostiles Destroyed 2 | 1 . 1 Guns 2 | 1 . 1 Classes Destroyed 2 | 1 . 1 Grunt 1 | 1 . . Assembled 1 | . . 1 Best Kill Streak 1 | 1 . 1 Combat Bots Only 1 | 1 . 1 Max Kills in Single Turn 1 | 1 . 1 Gunslinging . | . . . Exploded . | . . . Melee . | . . . Uniques/NPCs Destroyed . | . . . Combat | -11 -10 -10 -------- Run | Yrd Mat Min Hostile Shots Fired 82 | 2 . 80 Missed 18 | . . 18 Hits 64 | 2 . 62 Melee 18 | . . 18 Projectile 46 | 2 . 44 Critical Strikes 1 | . . 1 Damage Taken 909 | 16 . 893 Core 254 | 8 . 246 Absorbed by Shields . | . . . Ignored by Resistances 259 | 5 . 254 Core Remaining (%) 96 | 96 . . Volleys Fired 6 | 1 . 5 Largest 2 | 2 . 2 Hottest 100 | 90 . 100 Shots Fired 10 | 2 . 8 Gun 10 | 2 . 8 Cannon . | . . . Launcher . | . . . Special . | . . . Kinetic . | . . . Thermal 7 | 1 . 6 Explosive . | . . . Electromagnetic 3 | 1 . 2 Robot Hit Streak 4 | 1 . 4 Robot Miss Streak 1 | . . 1 Penetration Max . | . . . Secondary Targets . | . . . Shots Hit Robots 6 | 1 . 5 Core Hits 6 | 1 . 5 Critical Kills . | . . . Critical Parts Destroyed . | . . . Critical Strikes 1 | . . 1 Burn 1 | . . 1 Melee Attacks . | . . . Impact . | . . . Slashing . | . . . Piercing . | . . . Sneak Attacks . | . . . Combat Hostiles . | . . . Follow-up Attacks . | . . . Damage Inflicted 96 | 15 . 81 Guns 87 | 15 . 72 Cannons . | . . . Explosions . | . . . Melee . | . . . Ramming 9 | . . 9 Kinetic . | . . . Thermal 61 | . . 61 Explosive . | . . . Electromagnetic 26 | 15 . 11 Impact . | . . . Slashing . | . . . Piercing . | . . . Highest Corruption . | . . . Average Corruption . | . . . Corruption Purged . | . . . Corruption Blocked . | . . . Overload Shots . | . . . Overflow Damage . | . . . Projectiles . | . . . Explosions . | . . . Melee . | . . . Knockbacks . | . . . Impact . | . . . Kinetic . | . . . Secondary . | . . . Self-Inflicted Damage . | . . . Shots . | . . . Rammed . | . . . Targets Rammed 4 | . . 4 Kicked 4 | . . 4 Crushed . | . . . Highest Temperature 168 | 36 . 168 Average Temperature 64 | 24 . 73 Received Heat Transfer 112 | 12 . 100 Siege Activations . | . . . Martial Activations . | . . . Shielding Activations . | . . . Robots Disrupted . | . . . Combat Hostiles . | . . . Robots Corrupted . | . . . Combat Hostiles . | . . . Parts Fried . | . . . Impact Corruptions . | . . . Robots Melted . | . . . Combat Hostiles . | . . . Parts Melted . | . . . Heat Transferred 259 | . . 259 Parts Sabotaged . | . . . Parts Stolen . | . . . Parts Stripped . | . . . Power Chain Reactions . | . . . Alert | -11 -10 -10 ------- Run | Yrd Mat Min Maximum Alert Level . | . . . Low Security (%) 100 | 100 100 100 Level 1 . | . . . Level 2 . | . . . Level 3 . | . . . Level 4 . | . . . Level 5 . | . . . High Security . | . . . Max Security . | . . . Peak Influence 20 | 20 7 . Initial 5 | . 5 . Average 1 | 2 . . Influence Increases 27 | 20 7 . Destroy 0b10 Robot/C 20 | 20 . . Successful Hack 7 | . 7 . Influence Decreases 27 | 10 17 . Entered New Map 5 | . 5 . Time Decay 22 | 10 12 . Squads Dispatched . | . . . Investigation . | . . . Extermination . | . . . Reinforcement . | . . . Assault . | . . . Garrison . | . . . Intercept . | . . . Searches Triggered . | . . . Construction Impeded . | . . . Haulers Reinforced . | . . . Active Scanning Responses . | . . . Cargo Convoy Interrupts . | . . . Stealth | -11 -10 -10 --------- Run | Yrd Mat Min Distress Signals . | . . . Communications Jammed . | . . . Distress Signals . | . . . Times Spotted 22 | 1 . 21 Peak Tracking Total 19 | 1 . 19 Tactical Retreats 2 | . . 2 Traps | -11 -10 -10 ------- Run | Yrd Mat Min Traps Triggered . | . . . Indirectly . | . . . Trap Hack Attempts . | . . . Triggered . | . . . Disarmed . | . . . Reprogrammed . | . . . Reused . | . . . Traps Extracted . | . . . Installed . | . . . Triggered . | . . . Machines | -11 -10 -10 ---------- Run | Yrd Mat Min Machines Disabled . | . . . Max in Single Turn . | . . . Machines Repaired . | . . . Machines Dismantled . | . . . Machines Sabotaged . | . . . Overloaded Fab Kills . | . . . Hacking | -11 -10 -10 --------- Run | Yrd Mat Min Machines Accessed 1 | . 1 . Terminals 1 | . 1 . Fabricators . | . . . Repair Stations . | . . . Recycling Units . | . . . Scanalyzers . | . . . Garrison Access . | . . . Total Hacks 3 | . 3 . Successful 1 | . 1 . Failed 2 | . 2 . Catastrophic . | . . . Database Lockouts . | . . . Manual 1 | . 1 . Terminals 3 | . 3 . Fabricators . | . . . Repair Stations . | . . . Recycling Units . | . . . Scanalyzers . | . . . Garrison Access . | . . . Terminal Hacks 1 | . 1 . Security Status 1 | . 1 . Fabricator Hacks . | . . . Repair Station Hacks . | . . . Recycling Unit Hacks . | . . . Scanalyzer . | . . . Garrison Access Hacks . | . . . Unauthorized Hacks . | . . . Terminals . | . . . Fabricators . | . . . Repair Stations . | . . . Recycling Units . | . . . Scanalyzers . | . . . Garrison Access . | . . . Data Cores Recovered . | . . . Used . | . . . Hacking Detections . | . . . Full Trace Events . | . . . Feedback Events . | . . . Feedback Blocked . | . . . Robot Schematics Acquired . | . . . Robots Built . | . . . Authchips . | . . . Time . | . . . Total Robot Build Rating . | . . . Part Schematics Acquired . | . . . Parts Built . | . . . Authchips . | . . . Time . | . . . Total Part Build Rating . | . . . Parts Repaired . | . . . Time . | . . . Parts Recycled . | . . . Recycled Matter . | . . . Retrieved Matter . | . . . Retrieved Components . | . . . Parts Scanalyzed . | . . . Part Schematics Acquired . | . . . Parts Damaged . | . . . Bothacking | -11 -10 -10 ------------ Run | Yrd Mat Min Used RIF Installer . | . . . Robots Hacked . | . . . Non-combat . | . . . Combat . | . . . Robot Hacks Applied . | . . . Relay Couplers Released . | . . . Fabnet Peak Effective % . | . . . Robots Rewired . | . . . Allies Hacked . | . . . Hacks Repelled . | . . . Allies | -11 -10 -10 -------- Run | Yrd Mat Min Total Allies . | . . . Largest Group . | . . . Highest-Rated Group . | . . . Highest-Rated Ally . | . . . Total Orders . | . . . Ally Attacks . | . . . Total Damage . | . . . Kills . | . . . Allies Corrupted . | . . . Allies Melted . | . . . Intel | -11 -10 -10 ------- Run | Yrd Mat Min Active Infowar (turns) 220 | . 165 55 Terrain 220 | . 165 55 Robot Analysis Total . | . . . Derelict Logs Recovered . | . . . Drone Launches . | . . . Drone Recoveries . | . . . Exploration | -11 -10 -10 ------------- Run | Yrd Mat Min Turns Passed 354 | 102 191 61 Spaces Moved 163 | 72 80 11 Core 20 | 19 . 1 Treads . | . . . Legs 143 | 53 80 10 Wheels . | . . . Hover . | . . . Flight . | . . . Fastest Speed 50 | 50 120 260 Average Speed 176 | 101 226 304 Slowest Speed 750 | 120 260 750 Overloaded Moves . | . . . Propulsion Burnouts . | . . . Robots Hopped . | . . . Potential Cave-ins . | . . . Cave-ins Triggered . | . . . Exploration Rate (%) 10 | 7 17 7 Regions Visited 2 Branch Regions 1 Pre-discovered Areas . | . . . Known Exits Taken . | . . . Unknown Exits Taken 2 | 1 1 . Scrap Searched 1 | . . 1 Spaces Dug . | . . . Terrain Destroyed . | . . . Melee . | . . . Projectile . | . . . AOE . | . . . Terrain Rammed . | . . . Walls Destroyed . | . . . Machines Disabled . | . . . Actions | -11 -10 -10 --------- Run | Yrd Mat Min Total 215 | 99 91 25 Wait 9 | 8 . 1 Move 161 | 71 79 11 Hop . | . . . Pick Up 18 | 10 8 . Fast Attach . | . . . Attach 11 | 7 1 3 Detach 1 | 1 . . Swap 3 | 1 1 1 Drop 2 | . 2 . Fire 6 | 1 . 5 Melee . | . . . Ram . | . . . Kick 4 | . . 4 Crush . | . . . Escape Stasis . | . . . Rewire . | . . . Trap . | . . . Miscellaneous . | . . . Route ------- -11/Scrapyard -10/Materials -10/Mines History --------- Turn | Location | Event 2 | -11/Scrapyard | Met Revision 17 80 | -11/Scrapyard | Discovered new exit (range 8) 103 | -11/Scrapyard | Entered Materials 229 | -10/Materials | Discovered new exit (range 6) 294 | -10/Materials | Entered Mines 295 | -10/Mines | Assembled infested the area 301 | -10/Mines | Build established: Mutant 348 | -10/Mines | Core integrity fell below 50% 354 | -10/Mines | Core integrity fell below 20% 355 | -10/Mines | Destroyed by as-27075 with Assembled Blade Last Messages --------------- Acquired 20 matter. K-01 Serf collects debris. Kicked as-06361 out of the way. Knocked back. as-90109 destroyed. Ion Engine destroyed. Kicked as-48788. Kicked as-48788 out of the way. Plasma Cutter destroyed. as-06361 destroyed. Aluminum Leg destroyed. EM Pulse Gun destroyed. as-48788 suffers critical hit (Burn). Aluminum Leg destroyed. Med. Laser destroyed. Critical hit (Burn: +80). as-48788 destroyed. Terrain Scanner destroyed. Lgt. Ion Engine destroyed. Med. Laser destroyed. Map ----- +----------------------------------------------------+ | | | | | | | | | | | | | | | | | | | | | | | | | | | | | ?????????????????????#??????????????????????????? | | ????????????????????????????????????????????????? | | ????????????????????????????????????????????????? | | ??????????????????????????????#?????????????????? | | ????????????????#?????????????????#?#???????????? | | ??????????????????????#?????????????????????????? | | ??????????????????#???????#####?????????????????? | | ????????????????????#??????# ???? ?????????????? | | ???????????????????????????#!#?#????????????????? | | ????????????# ###########%#######a #????????? | | ???????????# ! aaaaaa aaaa ####??????? | | ????????? @a%% ########??#????????? | | ????????? !####### #??????????????????? | | ????????????### ?? ???????# #?????#??#?????????? | | ????????????????????????### ###????#???????????? | | ????????????????????????# #????????????????? | | ????????????????????????# #????????????????? | | ?????????????????????#??# """#????#???????????? | | ????????????????????????# """#????#???????????? | | ????????????????????????# """#????#???????????? | | ???????????????????#????# #????????????????? | | ??????????????????????#?########????????????????? | | ???????????????????????????????#????????????????? | | ?????????????????????????#??????????????????????? | | ???????????????????????????#?#??????????????????? | | ??????????????????????????????????? ????????????? | | ????????????????????????????????????????????????? | | ????????????????????????????????????????????????? | | ????????????????????????????????????????????????? | | ????????????????????????????????????????????????? | | ????????????????????????????????????????????????? | | ????????????????????????????????????????????????? | | ????????????????????????????????????????????????? | | ????????????????????????????????????????????????? | | ????????????????????????????????????????????????? | | ????????????????????????????????????????????????? | +----------------------------------------------------+ Best States ------------- Heat Dissipation 35 Energy Generation 10 Energy Capacity 250 Matter Stores 300 Matter Capacity 300 Sight Range 16 Terrain Scan Range 14 Terrain Scan Density 10 Resistance: KI 20 Resistance: TH 20 Resistance: EX 20 Resistance: EM 20 Resistance: I 20 Resistance: S 20 Resistance: P 20 Evasion (%) 55 Offensive Hacking 10 Item Schematics ----------------- None Robot Schematics ------------------ None Fabricated ------------ Nothing Repaired ---------- Nothing Alien Tech Used ----------------- None Achievements -------------- None Challenges ------------ None Game ------ Seed SurgeFireSabre Manual? 0 Play Time 00:11:29 Cumulative 2.6 hours Start 2025.05.07 @ 14:34:14 End 2025.05.07 @ 14:43:15 Sessions 1 Manual Loads 0 Difficulty Adventurer Special Mode None Game No. 2 Rogue 0 Adventurer 2 Explorer 0 Win Type - Total 0 Types 0/0/0/0/0/0/0/0/0/0 Lore% 2 Gallery% 6 Achievement% 8 Wizard Run 0 Options --------- Layout 1 ASCII 0 Keyboard 0 Movement Numpad Keybinds 0 Fullscreen 1 Font 24/Smallcaps Map View 50x35 Zoom Use 0% Tactical HUD 0 Map Filters NONE Filters NONE Steam 1 RUN: 7a67edb2-f3c9-4bfc-8005-ebec832f43a1